bitfinex-derivatives/quotes_ETHF0:USTF0_20250804
["timestamp","ask_amount","ask_price","bid_price","bid_amount"]
[1754298671590,22.4708,3558.7,3558.5,0.56197]
[1754298671785,23.03276,3558.7,3558.5,0.56197]
[1754298671989,22.4708,3558.7,3558.5,0.56197]
[1754298672190,23.03276,3558.7,3558.5,0.56197]
[1754298674494,22.4708,3558.7,3558.5,0.56197]
[1754298675490,23.03276,3558.7,3558.5,0.56197]
[1754298675795,22.4708,3558.7,3558.5,0.56197]
[1754298680394,19.263,3558.7,3558.5,0.56197]
[1754298682001,19.82496,3558.7,3558.5,0.56197]
[1754298682211,0.56199,3558.6,3558.1,1.40513]
[1754298682401,19.258,3558.5,3558.4,0.56199]
[1754298683500,0.56203,3558.3,3557.8,1.40525]
[1754298683805,19.258,3558.2,3558.1,0.56204]
[1754298685696,19.82004,3558.2,3558.0,0.56205]
[1754298685895,19.258,3558.2,3558.0,0.56205]
[1754298687297,19.82004,3558.2,3558.0,0.56205]
[1754298687502,19.258,3558.2,3558.0,0.56205]
[1754298690309,19.82004,3558.2,3558.0,0.56205]
[1754298690507,19.258,3558.2,3557.4,2.51546976]
[1754298690807,3.2078,3557.8,3557.2,1.40548]
[1754298691009,19.81812,3557.7,3557.2,1.40548]
[1754298691711,19.81813,3557.7,3557.5,0.56213]
[1754298692512,0.56217,3557.4,3557.2,0.56218]
[1754298693416,4.61325,3557.4,3556.7,3.2078]
[1754298693612,4.61325,3557.4,3556.2,1.40587]
[1754298693613,0.56227,3556.8,3556.6,0.56227]
[1754298693807,3.2078,3557.0,3556.3,1.40585]
[1754298693808,0.56225,3556.9,3556.7,0.56227]
[1754298694308,23.02603,3557.0,3556.7,0.56227]
[1754298694510,22.4638,3557.0,3556.8,0.56225]
[1754298694718,3.2078,3557.0,3556.8,0.56225]
[1754298701120,3.2078,3557.0,3556.7,0.56226]
[1754298701413,3.2078,3557.0,3556.2,3.2078]
[1754298701713,3.7701,3556.6,3556.4,0.56231]
[1754298701920,19.258,3556.5,3556.4,0.56231]
[1754298702323,0.56235,3556.3,3556.1,0.56236]
[1754298702520,0.56237,3556.1,3555.9,0.5624]
[1754298705422,22.4658,3556.2,3556.0,0.56237]
[1754298706223,0.5623,3556.6,3556.4,0.56231]
[1754298706417,0.56233,3556.4,3556.2,0.56234]
[1754298706617,19.82131,3556.5,3556.2,0.56234]
[1754298706824,19.82131,3556.5,3556.3,0.56233]
[1754298707522,19.259,3556.5,3556.3,0.56233]
[1754298707728,3.2078,3556.7,3556.5,0.56229]
[1754298708224,19.26,3556.6,3556.5,0.56229]
[1754298709019,3.2078,3557.2,3557.0,0.56222]
[1754298709212,19.259,3557.1,3557.0,0.56222]
[1754298710124,3.77,3557.2,3557.0,0.56222]
[1754298710324,19.259,3557.1,3557.0,0.56222]
[1754298710622,19.82122,3557.1,3556.9,0.56223]
[1754298710824,19.259,3557.0,3556.9,0.56223]
[1754298712525,0.56227,3556.8,3556.4,3.2078]
[1754298712824,0.56227,3556.8,3556.2,1.40589]
[1754298712825,19.259,3556.7,3556.6,0.56228]
[1754298720130,3.2078,3556.8,3556.6,0.56228]
[1754298720331,19.258,3556.7,3556.6,0.56229]
[1754298720523,0.56224,3557.0,3556.8,0.56225]
[1754298720723,0.56228,3556.7,3556.6,0.56228]
[1754298721026,0.5623,3556.6,3556.1,1.40591]
[1754298721220,19.257,3556.5,3556.1,1.40591]
[1754298721727,1.40581,3556.4,3555.6,3.2078]
[1754298721932,1.40581,3556.4,3555.3,2.51546976]
[1754298721933,4.61373,3556.2,3555.3,2.51546976]
[1754298722121,3.2078,3555.6,3555.5,0.56246]
[1754298722322,22.4658,3555.6,3555.4,0.56247]
[1754298722525,22.4658,3555.6,3555.2,0.56251]
[1754298723129,0.56247,3555.5,3555.3,0.56249]
[1754298723432,0.56247,3555.5,3555.2,0.5625]
[1754298723630,22.4658,3555.6,3555.4,0.56247]
[1754298724026,23.02826,3555.6,3555.3,0.56249]
[1754298724227,23.02825,3555.6,3555.3,0.56249]
[1754298724431,22.4658,3555.6,3555.4,0.56247]
[1754298728331,19.258,3555.5,3555.4,0.56247]
[1754298730230,19.258,3555.5,3555.3,0.56249]
[1754298732931,3.2078,3555.6,3555.5,0.56246]
[1754298733138,22.4678,3555.6,3555.5,0.56246]
[1754298733832,3.2078,3556.1,3555.9,0.56239]
[1754298734142,19.26,3556.0,3555.9,0.56239]
[1754298734931,19.82239,3556.0,3555.8,0.56241]
[1754298735138,0.56242,3555.9,3555.7,0.56242]
[1754298735327,19.26,3555.8,3555.7,0.56242]
[1754298738949,19.82243,3555.8,3555.6,0.56244]
[1754298739545,19.26,3555.8,3555.6,0.56244]
[1754298739941,19.82242,3555.8,3555.6,0.56244]
[1754298740142,19.26,3555.8,3555.6,0.56244]
[1754298741943,19.82242,3555.8,3555.6,0.56244]
[1754298742243,0.56245,3555.6,3555.5,0.56245]
[1754298742443,19.259,3555.6,3555.5,0.56245]
[1754298743050,19.259,3555.6,3555.3,0.56249]
[1754298743051,0.56248,3555.5,3555.3,0.56249]
[1754298743942,0.56249,3555.4,3555.1,0.56251]
[1754298744246,0.56251,3555.2,3555.1,0.56251]
[1754298744446,0.56254,3555.1,3554.6,3.2078]
[1754298744647,19.259,3555.0,3554.9,0.56255]
[1754298746141,3.77031,3555.3,3555.1,0.56251]
[1754298746341,19.259,3555.2,3555.1,0.56251]
[1754298751357,3.77023,3555.8,3555.7,0.56243]
[1754298751557,23.38619264,3555.8,3555.7,0.56243]
[1754298751862,22.62775329,3555.8,3555.7,0.56243]
[1754298752362,0.56243,3555.7,3555.5,0.56246]
[1754298752548,19.259,3555.6,3555.4,0.56247]
[1754298754058,3.2078,3555.8,3555.6,0.56243]
[1754298754248,19.41997941,3555.7,3555.6,0.56243]
[1754298754451,19.259,3555.7,3555.6,0.56243]
[1754298755659,19.259,3555.7,3555.5,0.56245]
[1754298758053,3.2078,3556.2,3556.1,0.56236]
[1754298758261,23.38602751,3556.2,3556.1,0.56236]
[1754298759059,23.38502751,3556.2,3556.1,0.56236]
[1754298759657,22.62616769,3556.2,3556.1,0.56236]
[1754298763056,22.62616769,3556.2,3555.7,0.56243]
[1754298763057,22.62616769,3556.2,3556.0,0.56238]
[1754298763261,0.72374769,3556.1,3555.9,0.56239]
[1754298763466,19.256,3556.0,3555.9,0.56239]
[1754298766569,19.256,3556.0,3555.8,0.5624]
[1754298769464,19.81839,3556.0,3555.8,0.5624]
[1754298771365,19.81839,3556.0,3555.4,3.2078]
[1754298771366,19.256,3556.0,3555.4,3.2078]
[1754298771571,3.2078,3555.8,3555.6,0.56244]
[1754298771770,19.253,3555.7,3555.6,0.56244]
[1754298774472,0.56245,3555.6,3555.5,0.56245]
[1754298774770,19.81544,3555.7,3555.5,0.56245]
[1754298775973,19.253,3555.7,3555.5,0.56245]
[1754298776271,19.81544,3555.7,3555.5,0.56245]
[1754298777179,0.5625,3555.3,3554.7,1.40645]
[1754298777368,0.56253,3555.1,3554.9,0.56254]
[1754298777568,0.56253,3555.1,3554.6,3.2078]
[1754298777569,19.253,3555.0,3554.6,3.2078]
[1754298777768,4.61402,3555.4,3554.6,3.2078]
[1754298777769,19.253,3554.9,3554.7,0.56259]
[1754298780076,3.77029,3555.4,3554.7,1.40648]
[1754298780272,19.253,3555.3,3555.2,0.5625]
[1754298780474,0.56246,3555.6,3555.4,0.56247]
[1754298780776,19.253,3555.5,3555.4,0.56247]
[1754298780977,19.41437248,3555.5,3555.4,0.56247]
[1754298781178,19.97684248,3555.5,3555.3,0.56248]
[1754298781381,0.16137248,3555.4,3555.3,0.56248]
[1754298781675,19.81547,3555.5,3555.3,0.56248]
[1754298781872,19.81547,3555.5,3555.2,0.5625]
[1754298781873,0.5625,3555.3,3555.2,0.5625]
[1754298782273,3.77029,3555.4,3555.2,0.5625]
[1754298783182,3.2078,3555.4,3555.2,0.5625]
[1754298786580,19.253,3555.5,3555.4,0.56248]
[1754298787381,3.77022,3555.8,3555.7,0.56243]
[1754298787578,23.02322,3555.8,3555.7,0.56243]
[1754298788079,23.02222,3555.8,3555.6,0.56244]
[1754298788981,0.56246,3555.6,3555.4,0.56247]
[1754298789172,19.252,3555.5,3555.4,0.56247]
[1754298789374,19.252,3555.5,3555.4,0.56248]
[1754298792178,3.77023,3555.8,3555.6,0.56244]
[1754298792377,19.251,3555.7,3555.6,0.56244]
[1754298792781,20.00610588,3555.7,3555.1,1.4063]
[1754298792981,3.2078,3555.2,3555.1,0.56253]
[1754298793181,22.4588,3555.2,3555.1,0.56253]
[1754298794181,19.251,3555.2,3555.1,0.56253]
[1754298795986,19.251,3555.2,3555.0,0.56254]
[1754298796280,3.2078,3555.1,3554.3,1.40664]
[1754298796485,3.2078,3555.1,3554.2,4.61445]
[1754298796486,0.56257,3554.9,3554.7,0.56258]
[1754298796686,19.251,3554.8,3554.7,0.56258]
[1754298802488,3.2078,3555.1,3555.0,0.56254]
[1754298802690,23.2137753,3555.1,3555.0,0.56254]
[1754298802893,22.4588,3555.1,3555.0,0.56254]
[1754298803286,3.2078,3555.1,3555.0,0.56254]
[1754298803491,22.4588,3555.1,3555.0,0.56254]
[1754298803693,3.2078,3555.1,3555.0,0.56254]
[1754298803895,19.251,3555.1,3555.0,0.56254]
[1754298813197,3.2078,3555.6,3555.5,0.56246]
[1754298813501,22.4558,3555.6,3555.5,0.56246]
[1754298814896,3.2078,3555.6,3555.5,0.56246]
[1754298816397,19.248,3555.8,3555.7,0.56243]
[1754298816799,3.2078,3556.2,3556.1,0.56237]
[1754298817000,22.61586967,3556.2,3556.1,0.56237]
[1754298817907,3.36886967,3556.2,3556.1,0.56237]
[1754298818204,22.61486967,3556.2,3556.1,0.56237]
[1754298818400,22.4538,3556.2,3556.1,0.56237]
[1754298819309,3.2078,3556.2,3556.1,0.56237]
[1754298819804,22.4528,3556.2,3556.1,0.56237]
[1754298820309,3.2078,3556.7,3556.2,1.40589]
[1754298820610,22.4528,3556.7,3556.6,0.56229]
[1754298823409,19.245,3556.7,3556.6,0.56229]
[1754298824107,3.2078,3557.1,3556.9,0.56224]
[1754298824311,19.241,3557.0,3556.9,0.56224]
[1754298830314,19.40141585,3557.0,3556.9,0.56224]
[1754298830611,0.16041585,3557.0,3556.9,0.56224]
[1754298830817,19.239,3557.0,3556.9,0.56224]
[1754298831316,19.39944021,3557.0,3556.9,0.56224]
[1754298836617,19.39957696,3557.0,3556.9,0.56224]
[1754298839223,19.239,3557.0,3556.9,0.56224]
[1754298839413,3.2078,3557.1,3556.9,0.56224]
[1754298839613,19.234,3557.0,3556.9,0.56224]
[1754298847328,3.2078,3557.5,3556.8,1.40565]
[1754298847529,19.23,3557.4,3556.8,1.40565]
[1754298847827,19.79217,3557.4,3557.3,0.56216]
[1754298848130,19.23,3557.4,3557.3,0.56216]
[1754298849326,0.56221,3557.2,3557.1,0.5622]
[1754298851725,0.75197444,3557.6,3557.4,0.56215]
[1754298853130,19.229,3557.5,3557.4,0.56215]
[1754298853334,19.98097118,3557.5,3557.4,0.56215]
[1754298854127,40.498,3557.8,3557.7,0.56212]
[1754298854328,40.498,3557.8,3557.6,0.56212]
[1754298854329,61.20137248,3557.8,3557.6,0.56212]
[1754298854528,0.91326248,3557.7,3557.6,0.56212]
[1754298855737,20.14126248,3557.7,3557.6,0.56212]
[1754298857535,19.97993913,3557.7,3557.6,0.56212]
[1754298858339,0.56213,3557.6,3557.5,0.56214]
[1754298858637,0.56213,3557.6,3557.4,0.56215]
[1754298858638,0.56216,3557.5,3557.4,0.56215]
[1754298858838,19.78916,3557.5,3557.4,0.56215]
[1754298859037,19.227,3557.5,3557.4,0.56215]
[1754298860037,22.4348,3557.5,3556.8,3.2078]
[1754298860337,1.31297069,3557.4,3557.2,0.56219]
[1754298860538,19.226,3557.3,3557.2,0.56219]
[1754298864645,3.2078,3557.5,3557.4,0.56216]
[1754298864840,23.34532294,3557.5,3557.4,0.56216]
[1754298867645,23.34532294,3557.5,3556.8,1.40564]
[1754298867843,0.91252294,3557.4,3557.2,0.56218]
[1754298868048,19.224,3557.3,3557.2,0.56218]
[1754298868241,19.9750701,3557.3,3557.2,0.56218]
[1754298868546,20.13684316,3557.3,3557.2,0.56218]
[1754298870536,20.13688414,3557.3,3557.2,0.56218]
[1754298871648,20.13688414,3557.3,3556.9,1.40558]
[1754298871649,20.13688414,3557.3,3557.1,0.5622]
[1754298871842,0.91288414,3557.2,3557.1,0.5622]
[1754298881554,19.38281404,3557.2,3557.1,0.5622]
[1754298881758,20.13388414,3557.2,3557.1,0.5622]
[1754298882150,20.13388414,3557.2,3557.1,0.92672819]
[1754298887662,20.13388414,3557.2,3557.1,0.36452819]
[1754298889362,0.91288414,3557.2,3557.1,0.36452819]
[1754298889558,19.38081404,3557.2,3557.1,0.36452819]
[1754298890365,0.16181404,3557.2,3557.1,0.36452819]
[1754298890557,3.2078,3557.5,3557.2,0.5622]
[1754298890558,0.16181404,3557.4,3557.2,0.5622]
[1754298890766,19.218,3557.3,3557.2,0.5622]
[1754298891061,19.218,3557.3,3557.2,0.94028408]
[1754298892567,17.99389,3557.3,3557.2,0.94028408]
[1754298892768,17.42212,3557.3,3557.2,0.94028408]
[1754298896559,40.498,3557.8,3557.7,0.56212]
[1754298896870,19.216,3557.8,3557.7,0.94020408]
[1754298897563,19.216,3557.8,3557.7,0.37808408]
[1754298897765,20.12463067,3557.8,3557.7,0.37808408]
[1754298897970,20.68673067,3557.8,3557.7,0.37746324]
[1754298898970,20.68672898,3557.8,3557.7,0.37746324]
[1754298899270,0.56213,3557.6,3557.5,0.56214]
[1754298899472,19.215,3557.6,3557.5,0.56214]
[1754298899668,19.3765151,3557.6,3557.5,0.56214]
[1754298900172,19.215,3557.6,3557.5,0.56214]
[1754298900367,19.37651086,3557.6,3557.4,0.56215]
[1754298900571,3.76995,3557.5,3557.4,0.56215]
[1754298900973,0.56222,3557.1,3557.0,0.56222]
[1754298901168,22.4228,3557.1,3557.0,0.56222]
[1754298901576,3.2078,3557.1,3557.0,0.56222]
[1754298901775,22.4228,3557.1,3557.0,0.56222]
[1754298902072,22.4228,3557.1,3556.4,4.21736]
[1754298902073,22.4228,3557.1,3556.4,1.40578]
[1754298902268,22.4228,3557.1,3556.9,0.56223]
[1754298902969,3.2078,3557.1,3556.9,0.56223]
[1754298903172,19.214,3557.0,3556.9,0.56223]
[1754298903473,19.214,3557.0,3556.8,0.56224]
[1754298903666,0.56226,3556.8,3555.9,3.92146976]
[1754298903866,3.2078,3556.6,3556.5,0.5623]
[1754298906076,22.4228,3556.6,3556.5,0.5623]
[1754298906774,19.215,3556.6,3556.5,0.5623]
[1754298909275,3.2078,3557.0,3556.9,0.56224]
[1754298909475,22.4218,3557.0,3556.9,0.56224]
[1754298909877,22.4218,3557.0,3556.8,0.56225]
[1754298910576,0.56228,3556.7,3556.4,0.56231]
[1754298910776,22.4218,3556.6,3556.4,0.56231]
[1754298910980,19.214,3556.5,3556.4,0.56231]
[1754298924486,0.56244,3555.7,3555.3,5.72326976]
[1754298924793,3.2078,3555.6,3555.3,0.56249]
[1754298925095,0.56247,3555.5,3555.3,0.56249]
[1754298925491,3.2078,3555.6,3555.0,0.56254]
[1754298925694,3.2078,3555.2,3555.0,0.56254]
[1754298931601,3.2078,3555.2,3554.9,0.56256]
[1754298931602,0.56253,3555.1,3554.9,0.56256]
[1754298932309,0.56259,3554.8,3554.6,0.5626]
[1754298932509,19.217,3554.8,3554.6,0.5626]
[1754298933196,22.4248,3554.8,3554.6,0.5626]
[1754298933597,22.98739,3554.8,3554.6,0.5626]
[1754298933903,22.4248,3554.8,3554.6,0.5626]
[1754298935302,22.98739,3554.8,3554.6,0.5626]
[1754298935502,22.4248,3554.8,3554.6,0.5626]
[1754298936103,22.98739,3554.8,3554.6,0.5626]
[1754298936403,22.4248,3554.8,3554.6,0.5626]
[1754298937106,22.98739,3554.8,3554.6,0.5626]
[1754298937403,0.56264,3554.5,3554.3,0.56265]
[1754298937606,0.56267,3554.3,3553.5,4.61476]
[1754298937802,0.5627,3554.1,3553.9,0.56272]
[1754298938003,19.219,3554.2,3554.0,0.5627]
[1754298938309,19.78169,3554.2,3554.0,0.5627]
[1754298938506,19.219,3554.2,3554.0,0.5627]
[1754298944702,22.4308,3554.3,3554.2,0.56268]
[1754298944910,19.223,3554.3,3554.2,3.77048]
[1754298945610,3.2078,3555.1,3555.0,0.56255]
[1754298945909,3.2078,3555.9,3555.4,0.56249]
[1754298946117,19.225,3555.8,3555.4,0.56249]
[1754298946910,19.225,3555.8,3555.7,0.56244]
[1754298947308,19.225,3555.8,3554.9,1.40642]
[1754298947508,19.225,3555.8,3555.6,0.56244]
[1754298948109,3.2078,3555.9,3555.8,0.56242]
[1754298948310,22.4348,3555.9,3555.6,0.56245]
[1754298948506,23.84084,3555.9,3554.8,3.2078]
[1754298948718,3.2078,3555.5,3554.8,3.2078]
[1754298948923,19.235,3555.4,3554.8,3.2078]
[1754298950109,19.79749,3555.4,3555.1,0.56252]
[1754298950619,0.56251,3555.3,3555.1,0.56252]
[1754298951522,0.56254,3555.1,3554.9,0.56255]
[1754298951722,19.238,3555.0,3554.9,0.56255]
[1754298953719,19.238,3555.0,3554.6,0.5626]
[1754298953921,19.238,3555.0,3554.1,1.40673]
[1754298953922,3.77041,3554.7,3554.4,0.56263]
[1754298954122,19.233,3554.6,3554.4,0.56263]
[1754298956020,19.79562,3554.6,3554.4,0.56263]
[1754298956220,19.233,3554.6,3554.4,0.56263]
[1754298957824,19.233,3554.6,3554.3,0.56265]
[1754298958023,19.233,3554.6,3553.8,1.40683]
[1754298958024,19.233,3554.6,3554.2,0.56267]
[1754298958225,3.77047,3554.3,3554.1,0.56269]
[1754298958424,19.228,3554.2,3554.1,0.56269]
[1754298959122,0.5627,3554.1,3553.8,0.56273]
[1754298959429,19.229,3554.0,3553.8,0.56273]
[1754298960830,19.229,3554.0,3553.7,0.56274]
[1754298961129,3.2078,3553.9,3553.7,0.56274]
[1754298962523,3.77053,3553.9,3553.7,0.56274]
[1754298962719,3.2078,3553.9,3553.7,0.56274]
[1754298962930,3.77053,3553.9,3553.7,0.56274]
[1754298963131,3.2078,3553.9,3553.7,0.56274]
[1754298966331,22.4328,3553.9,3553.7,0.56274]
[1754298966527,3.2078,3553.9,3553.7,0.56274]
[1754298967735,19.225,3554.1,3554.0,0.56271]
[1754298974137,3.2078,3554.4,3554.3,0.56266]
[1754298974339,22.4328,3554.4,3554.3,0.56266]
[1754298975130,19.225,3554.4,3554.3,0.56266]
[1754298977435,0.56272,3553.9,3553.8,3.2078]
[1754298977733,19.225,3553.9,3553.0,1.40714]
[1754298977944,3.2078,3553.6,3553.1,1.40713]
[1754298978137,19.237,3553.5,3553.1,1.40713]
[1754298978341,19.237,3553.5,3553.4,0.5628]
[1754298978534,19.237,3553.5,3553.3,0.56281]
[1754298979244,19.7998,3553.5,3553.2,0.56282]
[1754298979435,19.237,3553.5,3553.2,0.56282]
[1754298979937,19.237,3553.5,3553.3,0.56281]
[1754298980933,0.56272,3554.0,3553.7,0.56275]
[1754298981134,19.234,3553.9,3553.7,0.56275]
[1754298981734,3.2078,3554.1,3554.0,0.56271]
[1754298981935,6.89e-06,3554.1,3554.0,0.56271]
[1754298982135,2.41106945,3555.8,3554.9,0.56256]
[1754298982136,3.2078,3555.1,3554.9,0.56256]
[1754298982337,59.757,3555.0,3554.9,0.56256]
[1754298983736,19.253,3555.0,3554.9,0.56256]
[1754298984240,19.249,3555.0,3554.9,0.56256]
[1754298988341,19.249,3555.0,3554.8,0.56258]
[1754298990835,19.249,3555.0,3554.0,1.40675]
[1754298991037,3.2078,3554.7,3554.4,0.56264]
[1754298991236,19.237,3554.6,3554.4,0.56264]
[1754298991741,0.56265,3554.4,3554.2,0.56267]
[1754298991943,0.56268,3554.2,3554.1,0.56269]
[1754298992138,19.24,3554.2,3554.1,0.56269]
[1754298993044,19.80269,3554.2,3554.0,0.5627]
[1754298993344,0.56271,3554.0,3553.5,3.2078]
[1754298993543,19.241,3553.9,3553.8,0.56273]
[1754298994244,19.80373,3553.9,3553.7,0.56274]
[1754298994539,19.241,3553.9,3553.7,0.56274]
[1754298994933,3.2078,3554.3,3553.5,3.2078]
[1754298994934,3.2078,3554.3,3554.2,0.56268]
[1754298995133,22.4468,3554.3,3554.2,0.56268]
[1754298995539,23.00947,3554.3,3554.1,0.56268]
[1754298995738,22.4468,3554.3,3554.1,0.56268]
[1754298995946,22.4468,3554.3,3554.0,0.5627]
[1754298996341,23.00947,3554.3,3554.1,0.56268]
[1754298996541,22.4468,3554.3,3554.1,0.56268]
[1754298996735,23.00947,3554.3,3554.1,0.56268]
[1754298997644,23.00947,3554.3,3553.9,0.56271]
[1754298997645,0.5627,3554.1,3553.9,0.56271]
[1754298997852,19.242,3554.0,3553.9,0.56271]
[1754298999349,19.242,3554.0,3553.8,0.56273]
[1754299000050,19.80471,3554.0,3553.8,0.56273]
[1754299001051,19.242,3554.0,3553.5,3.2078]
[1754299001648,0.56276,3553.7,3553.1,1.4071]
[1754299001948,19.243,3553.6,3553.1,1.4071]
[1754299002143,0.56279,3553.5,3553.3,0.5628]
[1754299003849,3.77059,3553.5,3553.3,0.5628]
[1754299004050,3.2078,3553.5,3553.3,0.5628]
[1754299008348,19.237,3553.4,3553.3,0.5628]
[1754299012160,19.237,3553.4,3552.9,4.22104252]
[1754299012161,19.237,3553.4,3553.2,0.56283]
[1754299012354,0.56286,3553.1,3552.9,1.57611252]
[1754299012560,19.232,3553.0,3552.9,1.57611252]
[1754299012956,19.232,3553.0,3552.9,1.01324252]
[1754299021666,19.97779181,3553.0,3552.9,1.01324252]
[1754299022070,19.97779181,3553.0,3551.6,4.61552]
[1754299022071,0.56305,3551.9,3551.8,0.56305]
[1754299022269,19.80105,3551.9,3551.8,0.56305]
[1754299022471,0.56307,3551.8,3551.7,0.56306]
[1754299022770,19.238,3551.9,3551.2,4.61568]
[1754299022771,19.238,3551.9,3551.4,0.56311]
[1754299023068,19.238,3551.9,3551.2,3.2078]
[1754299023069,3.2078,3551.7,3551.5,0.5631]
[1754299023260,19.242,3551.6,3551.5,0.5631]
[1754299026171,3.77082,3552.1,3551.9,0.56303]
[1754299026367,19.24,3552.0,3551.9,0.56303]
[1754299026766,0.56304,3551.9,3551.8,0.56305]
[1754299027078,0.56306,3551.8,3551.7,0.56306]
[1754299027267,19.80506,3551.8,3551.7,0.56306]
[1754299027672,19.80506,3551.8,3551.6,0.56308]
[1754299028074,19.242,3551.8,3551.6,0.56308]
[1754299028373,19.80506,3551.8,3551.6,0.56308]
[1754299029076,0.56309,3551.7,3551.5,0.56309]
[1754299029373,19.242,3551.6,3551.5,0.56309]
[1754299029675,0.56314,3551.3,3550.8,4.61584]
[1754299029862,19.80216,3551.2,3551.0,0.56317]
[1754299030068,19.24,3551.1,3550.5,3.2078]
[1754299030269,0.56319,3551.0,3550.8,0.56321]
[1754299030477,19.243,3550.9,3550.8,0.56321]
[1754299035074,19.80621,3550.9,3550.7,0.56322]
[1754299035470,19.243,3550.9,3550.7,0.56322]
[1754299036176,0.56321,3550.8,3550.6,0.56324]
[1754299036776,19.8062,3550.9,3550.5,3.2078]
[1754299037077,3.2078,3550.8,3550.3,1.40824]
[1754299037274,0.56327,3550.5,3550.4,0.56327]
[1754299037474,19.242,3550.5,3550.4,0.56327]
[1754299038778,19.242,3550.5,3550.3,0.56329]
[1754299039073,3.2078,3550.4,3550.3,0.56329]
[1754299042080,22.4528,3550.4,3550.3,0.56329]
[1754299043481,3.2078,3550.8,3550.7,0.56323]
[1754299043682,22.4548,3550.8,3550.7,0.56323]
[1754299044076,0.56324,3550.7,3550.2,1.40828]
[1754299044983,23.01802,3550.8,3550.1,1.40832]
[1754299045178,22.4548,3550.8,3550.7,0.56323]
[1754299046080,3.2078,3550.8,3550.7,0.56323]
[1754299046277,22.4568,3550.8,3550.7,0.56323]
[1754299046878,40.548,3551.1,3551.0,0.56318]
[1754299047175,59.802,3551.1,3551.0,0.56318]
[1754299047576,3.2078,3551.2,3551.0,0.56318]
[1754299047776,19.255,3551.1,3551.0,0.56318]
[1754299050986,19.255,3551.1,3550.8,0.56321]
[1754299051180,0.56321,3550.9,3550.7,0.56322]
[1754299051381,19.251,3550.8,3550.7,0.56322]
[1754299051580,19.251,3550.8,3550.6,0.56323]
[1754299052586,19.251,3550.8,3550.5,0.56325]
[1754299052587,22.4588,3550.8,3550.5,0.56325]
[1754299052887,23.02202,3550.8,3550.6,0.56324]
[1754299053191,22.4588,3550.8,3550.0,4.61613]
[1754299053489,0.56327,3550.5,3550.0,4.61613]
[1754299053687,19.255,3550.4,3550.3,0.56328]
[1754299055189,19.81829,3550.4,3550.0,3.2078]
[1754299055794,23.02609,3550.4,3549.7,1.40844]
[1754299056084,22.4628,3550.4,3549.6,3.2078]
[1754299056490,0.56332,3550.2,3550.1,0.56332]
[1754299056687,0.5633,3550.3,3550.1,0.56332]
[1754299056886,22.4628,3550.4,3550.2,0.56329]
[1754299057287,23.02609,3550.4,3550.2,0.56329]
[1754299058196,22.4628,3550.4,3550.2,0.56329]
[1754299058588,23.02609,3550.4,3550.2,0.56329]
[1754299059292,0.56331,3550.2,3550.1,0.56332]
[1754299059489,0.56331,3550.2,3550.0,0.56333]
[1754299059689,0.56334,3550.0,3549.9,1.57744879]
[1754299059891,3.77114,3550.0,3549.9,1.01409879]
[1754299060897,3.2078,3550.0,3549.9,1.01409879]
[1754299062094,22.4578,3550.0,3549.9,1.01409879]
[1754299062290,22.4568,3550.0,3549.9,1.01409879]
[1754299062496,19.249,3550.0,3549.9,1.01409879]
[1754299065397,3.2078,3550.4,3550.0,1.40836]
[1754299065598,19.253,3550.3,3550.1,0.56333]
[1754299066497,3.2078,3550.4,3550.3,0.56329]
[1754299066694,22.4608,3550.4,3550.3,0.56329]
[1754299066998,19.253,3550.4,3550.3,0.56329]
[1754299067586,19.81629,3550.4,3550.2,0.5633]
[1754299068792,19.253,3550.4,3550.2,0.5633]
[1754299069891,3.2078,3550.8,3550.6,0.56324]
[1754299070097,19.259,3550.7,3550.6,0.56324]
[1754299076302,19.249,3550.7,3550.6,0.56324]
[1754299076993,3.2078,3550.8,3550.6,0.56324]
[1754299077200,19.248,3550.7,3550.6,0.56324]
[1754299078302,3.2078,3551.3,3551.2,0.56315]
[1754299078497,22.62031077,3551.3,3551.2,0.56315]
[1754299080699,3.37231077,3551.3,3551.2,0.56315]
[1754299080898,3.2078,3551.3,3551.2,0.56315]
[1754299081907,3.2078,3551.8,3550.8,3.2078]
[1754299082098,3.2078,3551.8,3551.7,0.56307]
[1754299082299,22.4538,3551.8,3551.7,0.56307]
[1754299083211,3.2078,3551.8,3551.7,0.56307]
[1754299083506,22.4538,3551.8,3551.7,0.56307]
[1754299083908,3.2078,3552.4,3552.3,0.56297]
[1754299084207,22.61797683,3552.4,3552.3,0.56297]
[1754299084906,22.4538,3552.4,3552.2,0.56298]
[1754299086110,23.01677,3552.4,3552.2,0.56298]
[1754299086300,22.4538,3552.4,3552.2,0.56298]
[1754299086607,19.246,3552.4,3552.2,0.56298]
[1754299088502,43.7568,3553.2,3553.1,0.56285]
[1754299088806,63.16260388,3553.2,3553.0,0.56285]
[1754299089108,62.9998,3553.2,3553.0,0.56285]
[1754299093208,22.4508,3553.2,3553.0,0.56285]
[1754299095118,22.4508,3553.2,3552.4,1.40739]
[1754299095707,22.4508,3553.2,3553.0,0.56285]
[1754299096712,0.56275,3553.7,3552.0,1.40755]
[1754299096713,3.2078,3553.7,3553.6,0.56277]
[1754299096909,19.239,3554.5,3554.4,0.56263]
[1754299098310,22.4958,3554.7,3554.6,0.56261]
[1754299099509,22.4958,3554.7,3554.0,1.40677]